bitfinex-derivatives/quotes_BTCF0:USTF0_20250422
["timestamp","ask_amount","ask_price","bid_price","bid_amount"]
[1745290523125,0.62498792,88157.0,88156.0,0.12060583]
[1745290523327,0.26418792,88157.0,88156.0,0.12060583]
[1745290523526,0.26418792,88157.0,88156.0,0.12068583]
[1745290523723,0.30458792,88157.0,88156.0,0.12068583]
[1745290523928,0.30458792,88157.0,88156.0,0.15798583]
[1745290524126,0.30458792,88157.0,88156.0,0.34998583]
[1745290524526,0.34268792,88157.0,88156.0,0.34998583]
[1745290526230,0.30458792,88157.0,88156.0,0.34998583]
[1745290527232,0.34118792,88157.0,88156.0,0.34998583]
[1745290529234,0.00217012,88157.0,88156.0,0.46342183]
[1745290529533,0.0786,88161.0,88160.0,0.1134278]
[1745290530227,0.0786,88161.0,88160.0,0.3054278]
[1745290530429,0.0786,88161.0,88160.0,0.3841278]
[1745290531437,0.0786,88161.0,88160.0,0.3871278]
[1745290531634,0.0786,88161.0,88160.0,0.3881278]
[1745290531829,0.4540443,88161.0,88160.0,0.3094278]
[1745290532029,0.4840443,88161.0,88160.0,0.3094278]
[1745290532330,0.4650443,88161.0,88160.0,0.1204278]
[1745290532634,0.4550443,88161.0,88160.0,0.1204278]
[1745290532834,0.5316443,88161.0,88160.0,0.1204278]
[1745290533037,0.5306443,88161.0,88160.0,0.1164278]
[1745290533226,0.5306443,88161.0,88160.0,0.001]
[1745290533431,0.1134317,88157.0,88156.0,0.17331923]
[1745290533838,0.3754495,88157.0,88156.0,0.17342723]
[1745290534033,0.3754495,88157.0,88156.0,0.17331923]
[1745290534235,0.4140495,88157.0,88156.0,0.17339923]
[1745290534539,0.3006178,88157.0,88156.0,0.17339923]
[1745290535526,0.3006178,88157.0,88156.0,0.17539923]
[1745290535732,0.3016178,88157.0,88156.0,0.17739923]
[1745290537842,0.3393178,88157.0,88156.0,0.06396883]
[1745290538534,0.3383178,88157.0,88144.0,0.00019683]
[1745290538742,0.3608,88148.0,88144.0,0.00019683]
[1745290538933,0.3608,88148.0,88147.0,0.1134445]
[1745290538934,0.4842438,88148.0,88147.0,0.1134445]
[1745290539136,0.7462616,88148.0,88147.0,0.1135245]
[1745290539439,0.6328178,88148.0,88147.0,0.1135245]
[1745290539630,0.0381,88149.0,88148.0,0.1134433]
[1745290539827,0.3001178,88149.0,88148.0,0.1539433]
[1745290540027,0.3001178,88149.0,88148.0,0.1916433]
[1745290540236,0.3001178,88149.0,88148.0,0.3836433]
[1745290541232,0.7743598,88149.0,88148.0,0.3836433]
[1745290541437,0.7743598,88149.0,88148.0,0.3421433]
[1745290542038,0.7743598,88149.0,88148.0,0.3431433]
[1745290542333,0.7753598,88149.0,88148.0,0.3074433]
[1745290542935,0.6619178,88149.0,88148.0,0.3074433]
[1745290543131,0.6619178,88149.0,88148.0,0.1154433]
[1745290543327,0.7753598,88149.0,88148.0,0.1154433]
[1745290543840,0.6619178,88149.0,88148.0,0.1539433]
[1745290544232,0.3011178,88149.0,88148.0,0.3459433]
[1745290544936,0.0391,88149.0,88148.0,0.3873433]
[1745290545138,0.001,88149.0,88148.0,0.3873433]
[1745290547041,0.001,88149.0,88148.0,0.50078729]
[1745290547428,0.001,88149.0,88148.0,0.61078729]
[1745290547633,0.001,88149.0,88148.0,0.51225235]
[1745290548932,0.001,88149.0,88148.0,0.50078729]
[1745290550140,0.001,88149.0,88148.0,0.3873433]
[1745290552837,0.001,88149.0,88148.0,0.3459433]
[1745290552838,0.3764598,88149.0,88148.0,0.3459433]
[1745290553044,0.2630178,88149.0,88148.0,0.3074433]
[1745290553346,0.2630178,88149.0,88148.0,0.1154433]
[1745290553734,0.3009178,88149.0,88148.0,0.1969433]
[1745290554136,0.3009178,88149.0,88148.0,0.3889433]
[1745290554342,0.3009178,88149.0,88148.0,0.3899433]
[1745290555742,0.0389,88149.0,88148.0,0.3899433]
[1745290555945,0.001,88149.0,88148.0,0.3899433]
[1745290559636,0.0411,88159.0,88148.0,0.3899433]
[1745290559637,0.3608,88160.0,88159.0,0.1134291]
[1745290560348,0.3608,88160.0,88159.0,0.3054291]
[1745290560539,0.3994,88160.0,88159.0,0.3054291]
[1745290560738,0.4004,88160.0,88159.0,0.3868291]
[1745290561137,0.4004,88160.0,88159.0,0.3888291]
[1745290561539,0.4004,88160.0,88159.0,0.3878291]
[1745290561741,0.4004,88160.0,88159.0,0.3898291]
[1745290562645,0.40048,88160.0,88159.0,0.3898291]
[1745290563737,0.39948,88160.0,88159.0,0.3868291]
[1745290563942,0.39948,88160.0,88159.0,0.3898291]
[1745290564142,0.03868,88160.0,88159.0,0.3878291]
[1745290564338,0.03868,88160.0,88159.0,0.3888291]
[1745290564644,0.4141256,88160.0,88159.0,0.3094291]
[1745290564833,0.4932256,88160.0,88159.0,0.3094291]
[1745290565351,0.3797978,88160.0,88159.0,0.1174291]
[1745290566042,0.3797978,88160.0,88159.0,0.1164291]
[1745290567141,0.3797978,88160.0,88159.0,0.1144291]
[1745290568540,0.3797978,88160.0,88159.0,0.1134291]
[1745290568745,0.3797978,88160.0,88159.0,0.1144291]
[1745290570045,0.3797978,88160.0,88159.0,0.1134291]
[1745290570245,0.3797978,88160.0,88159.0,0.1154291]
[1745290570748,0.4932256,88160.0,88159.0,0.1134291]
[1745290570942,0.4932256,88160.0,88159.0,0.1154291]
[1745290573148,0.4932256,88160.0,88159.0,0.1134291]
[1745290573355,0.4932256,88160.0,88159.0,0.1144291]
[1745290573852,0.3797978,88160.0,88154.0,0.1701487]
[1745290574042,0.4742382,88155.0,88154.0,0.1701487]
[1745290574455,0.736256,88155.0,88154.0,0.1701487]
[1745290574950,0.7579352,88155.0,88146.0,8e-05]
[1745290575142,0.1701623,88151.0,88150.0,0.170157]
[1745290575654,0.3187381,88151.0,88150.0,0.170157]
[1745290576153,0.3971381,88151.0,88150.0,0.170157]
[1745290576853,0.3971381,88151.0,88150.0,0.172157]
[1745290577546,0.3971381,88151.0,88150.0,0.0587199]
[1745290577742,0.3404178,88151.0,88150.0,0.0567199]
[1745290578042,0.4538572,88151.0,88150.0,0.0577199]
[1745290579456,0.4538572,88151.0,88150.0,0.0587199]
[1745290580054,0.4538572,88151.0,88150.0,0.002]
[1745290581250,0.4649805,88151.0,88150.0,0.002]
[1745290581446,0.1134484,88144.0,88143.0,0.1540497]
[1745290581757,0.5525684,88144.0,88143.0,0.05188601]
[1745290581952,0.8145862,88144.0,88143.0,0.05188601]
[1745290582157,0.8145862,88144.0,88143.0,0.05196601]
[1745290582347,0.8977862,88144.0,88143.0,0.05196601]
[1745290582548,0.8987862,88144.0,88143.0,0.05396601]
[1745290582948,0.8987862,88144.0,88143.0,0.05496601]
[1745290584255,0.8987862,88144.0,88143.0,0.00308]
[1745290584454,0.8987862,88144.0,88143.0,0.1164497]
[1745290584757,0.8987862,88144.0,88143.0,0.1165297]
[1745290585354,1.0387862,88144.0,88143.0,0.00308]
[1745290585556,1.0377862,88144.0,88143.0,0.00108]
[1745290585755,1.0387862,88144.0,88143.0,0.00208]
[1745290585954,0.8987862,88144.0,88143.0,0.1154497]
[1745290586254,0.8987862,88144.0,88143.0,0.1155297]
[1745290590760,0.8987862,88144.0,88143.0,0.00208]
[1745290591954,1.0287862,88144.0,88143.0,0.00208]
[1745290592353,1.0287862,88144.0,88143.0,0.002]
[1745290592558,1.0287862,88144.0,88143.0,0.00208]
[1745290594165,1.3895862,88144.0,88143.0,0.00208]
[1745290596457,1.3895862,88144.0,88143.0,0.00108]
[1745290596657,1.3925862,88144.0,88143.0,8e-05]
[1745290597155,1.3915862,88144.0,88143.0,8e-05]
[1745290597966,1.5050382,88144.0,88143.0,8e-05]
[1745290598260,0.1134523,88141.0,88140.0,0.00011386]
[1745290598560,0.3434523,88141.0,88140.0,0.00019386]
[1745290598765,0.7189261,88141.0,88140.0,0.00019386]
[1745290599759,0.7199261,88141.0,88140.0,0.00019386]
[1745290600060,0.7209261,88141.0,88140.0,0.00019386]
[1745290601454,0.7219261,88141.0,88140.0,0.00119386]
[1745290601655,0.7209261,88141.0,88140.0,0.00119386]
[1745290601865,0.7219261,88141.0,88140.0,0.00119386]
[1745290602454,0.7219261,88141.0,88140.0,6e-08]
[1745290602654,0.7219261,88141.0,88140.0,8.006e-05]
[1745290603264,0.9139261,88141.0,88140.0,8.006e-05]
[1745290605066,0.8004701,88141.0,88140.0,8.006e-05]
[1745290605270,0.8004701,88141.0,88140.0,0.19143356]
[1745290605271,0.003,88141.0,88140.0,0.19143356]
[1745290606070,0.003,88141.0,88140.0,0.38343356]
[1745290606272,0.0782,88145.0,88144.0,0.1134484]
[1745290606472,0.0782,88145.0,88144.0,0.1124484]
[1745290607073,0.0782,88145.0,88144.0,0.3044484]
[1745290607369,0.0782,88145.0,88144.0,0.3809484]
[1745290608558,0.00017012,88149.0,88144.0,0.382952]
[1745290608764,0.0567088,88168.0,88160.0,0.1134278]
[1745290609067,0.0782,88163.0,88160.0,0.3054278]
[1745290609271,0.1138545,88161.0,88160.0,0.3044278]
[1745290609566,0.1138545,88161.0,88160.0,0.3817278]
[1745290610068,0.1158545,88161.0,88160.0,0.3827278]
[1745290610267,0.3778723,88161.0,88160.0,0.3827278]
[1745290611362,0.3788723,88161.0,88160.0,0.3827278]
[1745290612767,0.2654458,88161.0,88160.0,0.3827278]
[1745290612971,0.2653658,88161.0,88160.0,0.3827278]
[1745290613168,0.2654458,88161.0,88160.0,0.3827278]
[1745290613360,0.3788723,88161.0,88160.0,0.3827278]
[1745290613761,0.2654458,88161.0,88160.0,0.3827278]
[1745290614163,0.3788723,88161.0,88160.0,0.3827278]
[1745290615168,0.1158545,88161.0,88160.0,0.3847278]
[1745290615367,0.1148545,88161.0,88160.0,0.3857278]
[1745290615573,0.079628,88161.0,88160.0,0.3857278]
[1745290615971,0.001348,88161.0,88160.0,0.3857278]
[1745290616276,0.001428,88161.0,88160.0,0.3857278]
[1745290617572,0.000428,88161.0,88160.0,0.3827278]
[1745290617772,0.001428,88161.0,88160.0,0.3857278]
[1745290617973,0.001428,88161.0,88160.0,0.3847278]
[1745290618163,0.001428,88161.0,88160.0,0.3857278]
[1745290618864,0.000428,88161.0,88160.0,0.3817278]
[1745290619070,0.001428,88161.0,88160.0,0.3837278]
[1745290619469,0.001428,88161.0,88160.0,0.3847278]
[1745290619972,0.001428,88161.0,88160.0,0.3837278]
[1745290620174,0.00017012,88169.0,88168.0,0.1134175]
[1745290620367,0.00017012,88169.0,88168.0,0.4742175]
[1745290620564,0.00025012,88169.0,88168.0,0.4742175]
[1745290620767,0.00025012,88169.0,88168.0,0.5542175]
[1745290621271,0.00025012,88169.0,88168.0,0.7462175]
[1745290621475,0.07804,88181.0,88180.0,0.1134021]
[1745290621674,0.1133982,88183.0,88182.0,0.1133982]
[1745290621970,0.1133982,88183.0,88182.0,0.1943982]
[1745290622171,0.1133982,88183.0,88182.0,0.3863982]
[1745290622372,0.1134782,88183.0,88182.0,0.3853982]
[1745290623862,0.1134782,88183.0,88182.0,0.3883982]
[1745290624474,0.1144782,88183.0,88182.0,0.39688196]
[1745290624668,0.1144782,88183.0,88182.0,0.3883982]
[1745290625066,0.376496,88183.0,88182.0,0.1963982]
[1745290625266,0.417096,88183.0,88182.0,0.084]
[1745290625474,0.455596,88183.0,88182.0,0.084]
[1745290626166,0.545596,88183.0,88182.0,0.003]
[1745290626365,0.455596,88183.0,88182.0,0.003]
[1745290627972,0.455596,88183.0,88182.0,0.1163995]
[1745290628172,0.3421978,88183.0,88182.0,0.1163995]
[1745290628373,0.3036178,88183.0,88182.0,0.1545995]
[1745290628576,0.3036978,88183.0,88182.0,0.1545995]
[1745290629183,0.2630978,88183.0,88182.0,0.1545995]
[1745290629380,0.2630178,88183.0,88182.0,0.1545995]
[1745290629581,0.2620978,88183.0,88182.0,0.1545995]
[1745290629884,0.375496,88183.0,88182.0,0.1545995]
[1745290630085,0.416296,88183.0,88182.0,0.1545995]
[1745290631583,0.453596,88183.0,88182.0,0.1545995]
[1745290631882,0.453596,88183.0,88182.0,0.0412]
[1745290632086,0.453596,88183.0,88182.0,0.003]
[1745290632776,0.3028978,88183.0,88182.0,0.1553995]
[1745290632980,0.0408,88183.0,88182.0,0.1553995]
[1745290633184,0.0408,88183.0,88182.0,0.3473995]
[1745290633683,0.04088,88183.0,88182.0,0.3473995]
[1745290633879,0.04088,88183.0,88182.0,0.3855995]
[1745290634385,0.0408,88183.0,88182.0,0.3855995]
[1745290634685,0.04088,88183.0,88182.0,0.3855995]
[1745290634881,0.1542782,88183.0,88182.0,0.3855995]
[1745290635185,0.1542782,88183.0,88182.0,0.3473995]
[1745290635384,0.1925782,88183.0,88182.0,0.3473995]
[1745290636484,0.454596,88183.0,88182.0,0.3083995]
[1745290637074,0.454596,88183.0,88182.0,0.1163995]
[1745290641589,0.454596,88183.0,88182.0,0.1133995]
[1745290641887,0.454596,88183.0,88182.0,0.1153995]
[1745290643092,0.454596,88183.0,88182.0,0.1133995]
[1745290643281,0.454596,88183.0,88182.0,0.1153995]
[1745290644491,0.454596,88183.0,88182.0,0.1551995]
[1745290645688,0.454596,88183.0,88182.0,0.1153995]
[1745290650988,0.04088,88183.0,88182.0,0.1153995]
[1745290651290,0.1133855,88193.0,88190.0,0.1133892]
[1745290651505,0.0384,88192.0,88190.0,0.4741892]
[1745290651690,0.26218792,88191.0,88190.0,0.4741892]
[1745290651991,0.37557582,88191.0,88190.0,0.4741892]
[1745290652188,0.37557582,88191.0,88190.0,0.5522892]
[1745290652581,0.41607582,88191.0,88190.0,0.5522892]
[1745290654289,0.41607582,88191.0,88190.0,0.5532892]
[1745290654490,0.41707582,88191.0,88190.0,0.5140892]
[1745290654885,0.41607582,88191.0,88190.0,0.5140892]
[1745290655782,0.41607582,88191.0,88190.0,0.3997]
[1745290655983,0.41607582,88191.0,88190.0,0.3628]
[1745290656193,0.60807582,88191.0,88190.0,0.3628]
[1745290656588,0.60807582,88191.0,88190.0,0.3608]
[1745290656793,0.60807582,88191.0,88190.0,0.3628]
[1745290657190,0.41607582,88191.0,88190.0,0.002]
[1745290657493,0.1133905,88189.0,88188.0,0.1133916]
[1745290657894,0.3754083,88189.0,88188.0,0.1133916]
[1745290658195,0.4888083,88189.0,88188.0,0.1133916]
[1745290659291,0.1133982,88184.0,88183.0,0.113398]
[1745290659590,0.1133982,88184.0,88181.0,0.4175001]
[1745290659591,0.1133995,88182.0,88181.0,0.4742008]
[1745290659988,0.3754173,88182.0,88181.0,0.4742008]
[1745290660297,0.4506173,88182.0,88181.0,0.4742008]
[1745290660694,0.3372178,88182.0,88181.0,0.4752008]
[1745290661090,0.4506173,88182.0,88181.0,0.5117008]
[1745290661293,0.3372178,88182.0,88181.0,0.5117008]
[1745290661795,0.2990178,88182.0,88181.0,0.5117008]
[1745290662185,0.4124173,88182.0,88181.0,0.5147008]
[1745290664300,0.4124173,88182.0,88181.0,0.4013]
[1745290664494,0.4124173,88182.0,88181.0,0.4782008]
[1745290664892,0.4124173,88182.0,88181.0,0.3648]
[1745290665192,0.5624173,88182.0,88181.0,0.004]
[1745290666790,0.1134047,88178.0,88177.0,0.1134056]
[1745290667192,0.3754225,88178.0,88177.0,0.1134056]
[1745290667497,0.1134072,88176.0,88175.0,0.0935042]
[1745290667989,0.375425,88176.0,88175.0,0.0935042]
[1745290668190,0.450225,88176.0,88175.0,0.0935042]
[1745290668902,0.2999178,88176.0,88175.0,0.0935042]
[1745290669202,0.413325,88176.0,88175.0,0.1732042]
[1745290669396,0.413405,88176.0,88175.0,0.1732042]
[1745290669702,0.413405,88176.0,88175.0,0.1752042]
[1745290670608,0.413405,88176.0,88175.0,0.0783]
[1745290670805,0.413405,88176.0,88175.0,0.1917085]
[1745290671002,0.413405,88176.0,88175.0,0.1522085]
[1745290671398,0.413405,88176.0,88175.0,0.002]
[1745290671795,0.413405,88176.0,88175.0,0.1154085]
[1745290671999,0.42484136,88176.0,88175.0,0.1134085]
[1745290672203,0.413405,88176.0,88175.0,0.1551085]
[1745290672404,0.413405,88176.0,88175.0,0.0417]
[1745290673004,0.413405,88176.0,88175.0,0.1551085]
[1745290673202,0.413405,88176.0,88175.0,0.0417]
[1745290674098,0.42491369,88176.0,88175.0,0.002]
[1745290674294,0.52491369,88176.0,88175.0,0.002]
[1745290675202,0.52491369,88176.0,88175.0,0.0398]
[1745290675401,0.52491369,88176.0,88175.0,0.002]
[1745290675602,0.52491369,88176.0,88175.0,0.1154085]
[1745290675794,0.3999178,88176.0,88175.0,0.1907085]
[1745290675996,0.16142083,88200.0,88175.0,0.1907085]
[1745290675997,0.00010801,88181.0,88175.0,0.640712]
[1745290676295,0.00017012,88191.0,88184.0,0.1133969]
[1745290676503,0.00017012,88191.0,88190.0,0.1133892]
[1745290677199,0.00017012,88191.0,88190.0,0.3053892]
[1745290677395,0.00017012,88191.0,88190.0,0.3806892]
[1745290677599,0.00017012,88191.0,88190.0,0.7414892]
[1745290678000,1.64352,88206.0,88190.0,0.7414892]
[1745290678001,0.07792,88204.0,88203.0,0.1133725]
[1745290678300,0.3399378,88204.0,88203.0,0.1133725]
[1745290678696,0.3399378,88204.0,88203.0,0.1917725]
[1745290679106,0.453309,88204.0,88203.0,0.1917725]
[1745290679307,0.453389,88204.0,88203.0,0.1917725]
[1745290679506,0.455309,88204.0,88203.0,0.1917725]
[1745290679811,0.455389,88204.0,88203.0,0.1917725]
[1745290680308,0.3419378,88204.0,88203.0,0.1917725]
[1745290680502,0.08,88204.0,88203.0,0.1917725]
[1745290680909,0.00208,88204.0,88203.0,0.1917725]
[1745290681099,0.1133589,88214.0,88211.0,0.1133622]
[1745290681408,0.0566773,88217.0,88211.0,0.4741622]
[1745290681613,0.00025012,88212.0,88211.0,0.4731622]
[1745290681908,0.00017012,88212.0,88211.0,0.5845622]
[1745290682107,0.00017012,88212.0,88211.0,0.7765622]
[1745290682108,0.00025012,88212.0,88211.0,0.7765622]
[1745290682302,0.00125012,88212.0,88211.0,0.7765622]
[1745290683001,0.11461102,88212.0,88211.0,0.7765622]
[1745290683203,0.37662882,88212.0,88211.0,0.5845622]
[1745290683411,0.37662882,88212.0,88211.0,0.5463622]
[1745290683907,0.45492882,88212.0,88211.0,0.1855622]
[1745290684309,0.45392882,88212.0,88211.0,0.1855622]
[1745290684608,0.45392882,88212.0,88211.0,0.1501622]
[1745290688306,0.45392882,88212.0,88211.0,0.001]
[1745290691415,0.1133622,88211.0,88210.0,0.1133631]
[1745290691716,0.37538,88211.0,88210.0,0.1133631]
[1745290692018,0.45448,88211.0,88210.0,0.1133631]
[1745290692210,0.1133648,88209.0,88208.0,0.0371]
[1745290692406,0.1233648,88209.0,88208.0,0.1504661]
[1745290692607,0.3853826,88209.0,88208.0,0.1504661]
[1745290694717,0.4605826,88209.0,88208.0,0.1504661]
[1745290694908,0.4605826,88209.0,88206.0,0.0566843]
[1745290694909,0.0566871,88202.0,88188.0,0.1133911]
[1745290695112,0.1133789,88198.0,88197.0,0.0376]
[1745290695318,0.1133815,88196.0,88193.0,0.5247849]
[1745290695712,0.12447601,88196.0,88194.0,0.113384]
[1745290695911,0.46159381,88196.0,88194.0,0.113384]
[1745290696111,0.46159381,88196.0,88195.0,0.03777012]
[1745290697115,0.46159381,88196.0,88195.0,0.00017012]
[1745290697419,0.46159381,88196.0,88195.0,0.00117012]
[1745290698120,0.46159381,88196.0,88195.0,0.00317012]
[1745290698716,0.58159381,88196.0,88195.0,0.00317012]
[1745290698919,0.1134008,88181.0,88180.0,0.1502021]
[1745290699120,0.3754186,88181.0,88180.0,0.1502021]
[1745290699722,0.4132186,88181.0,88180.0,0.1502021]
[1745290700112,0.4132186,88181.0,88180.0,0.1522021]
[1745290701528,0.4132186,88181.0,88180.0,0.1542021]
[1745290705317,0.4132186,88181.0,88180.0,0.0408]
[1745290706228,0.4132186,88181.0,88180.0,0.0388]
[1745290706627,0.4132186,88181.0,88180.0,0.1512021]
[1745290707824,0.4132186,88181.0,88180.0,0.1502021]
[1745290708018,0.07776,88183.0,88182.0,0.1133995]
[1745290708324,0.07784,88183.0,88182.0,0.1133995]
[1745290708724,0.07784,88183.0,88182.0,0.1892995]
[1745290709118,0.07784,88183.0,88182.0,0.3812995]
[1745290710030,0.07784,88183.0,88182.0,0.3822995]
[1745290710632,0.1912382,88183.0,88182.0,0.3822995]
[1745290711227,0.1912382,88183.0,88182.0,0.3832995]
[1745290712230,0.453256,88183.0,88182.0,0.3832995]
[1745290712823,0.490756,88183.0,88182.0,0.3822995]
[1745290713023,0.490756,88183.0,88182.0,0.3832995]
[1745290713217,0.490756,88183.0,88182.0,0.1912995]
[1745290713421,0.490756,88183.0,88182.0,0.1529995]
[1745290713725,0.3398578,88183.0,88182.0,0.1519995]
[1745290713925,0.3398578,88183.0,88182.0,0.1529995]
[1745290714320,0.3398578,88183.0,88182.0,0.1509995]
[1745290714526,0.3398578,88183.0,88182.0,0.1519995]
[1745290715330,0.07784,88183.0,88182.0,0.3439995]
[1745290715529,0.07776,88183.0,88182.0,0.3439995]
[1745290715728,0.07784,88183.0,88182.0,0.3439995]
[1745290716034,0.07784,88183.0,88182.0,0.3449995]
[1745290716217,0.07784,88183.0,88182.0,0.1519995]
[1745290716418,0.07784,88183.0,88182.0,0.1539995]
[1745290716824,0.00017012,88189.0,88188.0,0.1133918]
[1745290717232,0.00017012,88189.0,88188.0,0.3053918]
[1745290717537,0.00025012,88189.0,88188.0,0.3053918]
[1745290717726,0.00025012,88189.0,88188.0,0.3815918]
[1745290717926,0.00025012,88189.0,88188.0,0.3825918]
[1745290718130,0.00025012,88189.0,88188.0,0.1905918]
[1745290720033,0.26226792,88189.0,88188.0,0.1905918]
[1745290720528,0.37565842,88189.0,88188.0,0.1905918]
[1745290720723,0.45255842,88189.0,88188.0,0.1905918]
[1745290720932,0.45255842,88189.0,88188.0,0.001]
[1745290721122,0.45255842,88189.0,88188.0,0.1143918]
[1745290722433,0.45255842,88189.0,88188.0,0.001]
[1745290723533,0.1700957,88186.0,88185.0,0.1133918]
[1745290724030,0.4321135,88186.0,88185.0,0.1133918]
[1745290724627,0.4710135,88186.0,88185.0,0.1143918]
[1745290725023,0.4710135,88186.0,88185.0,0.1153918]
[1745290726133,0.4710135,88186.0,88185.0,0.002]
[1745290727435,0.4710135,88186.0,88185.0,0.001]
[1745290727635,0.4710135,88186.0,88185.0,0.002]
[1745290727836,0.4710135,88186.0,88185.0,0.1153957]
[1745290728136,0.3009178,88186.0,88185.0,0.1143957]
[1745290728331,0.2620178,88186.0,88185.0,0.1143957]
[1745290728842,0.4129922,88186.0,88185.0,0.1532957]
[1745290730730,0.4906322,88186.0,88185.0,0.1532957]
[1745290731935,0.4906322,88186.0,88185.0,0.1522957]
[1745290732141,0.4906322,88186.0,88185.0,0.1532957]
[1745290732838,0.3396578,88186.0,88185.0,0.1522957]
[1745290733040,0.4531322,88186.0,88185.0,0.1532957]
[1745290733244,0.4531322,88186.0,88185.0,0.3452957]
[1745290734332,0.4531322,88186.0,88185.0,0.3462957]
[1745290737135,0.4531322,88186.0,88185.0,0.1542957]
[1745290737741,0.07772,88186.0,88185.0,0.1542957]
[1745290737936,0.1911144,88186.0,88185.0,0.1542957]
[1745290738149,0.1134744,88186.0,88185.0,0.1542957]
[1745290738335,0.00017012,88189.0,88188.0,0.1133918]
[1745290739231,0.00017012,88189.0,88188.0,0.3426918]
[1745290739432,0.07774801,88193.0,88192.0,0.1133867]
[1745290739433,0.07764,88193.0,88192.0,0.1133867]
[1745290739748,0.07764,88203.0,88202.0,0.1133738]
[1745290740043,0.07764,88203.0,88202.0,0.4741738]
[1745290740243,0.4530303,88203.0,88202.0,0.4741738]
[1745290740432,0.3396578,88203.0,88202.0,0.4741738]
[1745290740638,0.4530303,88203.0,88202.0,0.5510738]
[1745290741639,0.3396578,88203.0,88202.0,0.5510738]
[1745290742242,0.3397378,88203.0,88202.0,0.7430738]
[1745290742538,0.07772,88203.0,88202.0,0.7430738]
[1745290742738,0.07772,88203.0,88202.0,0.7440738]
[1745290745651,0.07772,88203.0,88202.0,0.7430738]
[1745290745847,0.07772,88203.0,88202.0,0.7440738]
[1745290746251,0.07772,88203.0,88202.0,0.5520738]
[1745290746437,0.3397378,88203.0,88202.0,0.5124738]
[1745290747443,0.07772,88203.0,88202.0,0.5124738]
[1745290747636,0.07772,88203.0,88202.0,0.5530738]
[1745290747840,0.07772,88203.0,88202.0,0.5520738]
[1745290748036,0.07772,88203.0,88202.0,0.5530738]
[1745290748237,0.0566707,88228.0,88202.0,0.5530738]
[1745290748238,0.00026573,88222.0,88202.0,1.606476]
[1745290748540,0.056665,88236.0,88232.0,0.113333]
[1745290748845,0.1133327,88234.0,88233.0,0.1932333]
[1745290749249,0.4555505,88234.0,88233.0,0.1932333]
[1745290749640,0.3422178,88234.0,88233.0,0.1932333]
[1745290750637,0.4555505,88234.0,88233.0,0.1932333]
[1745290751146,0.4555505,88234.0,88233.0,0.1526333]
[1745290751545,0.113334,88233.0,88232.0,0.3608]
[1745290751744,0.113343,88226.0,88225.0,0.1135139]
[1745290752250,0.3753608,88226.0,88225.0,0.00017]
[1745290753044,0.3753608,88226.0,88225.0,0.00117]
[1745290753844,0.3753608,88226.0,88225.0,0.1145142]
[1745290754449,0.3753608,88226.0,88225.0,0.1135142]
[1745290754749,0.3753608,88226.0,88225.0,0.00117]
[1745290755150,0.5673608,88226.0,88225.0,0.00117]
[1745290755450,0.5673608,88226.0,88225.0,0.00017]
[1745290756355,0.1133597,88213.0,88212.0,0.11336]
[1745290756756,0.2620178,88213.0,88212.0,0.11336]
[1745290757056,0.2620178,88213.0,88210.0,0.16141393]
[1745290757057,0.0759,88214.0,88213.0,0.1133597]
[1745290757258,0.1135209,88222.0,88221.0,0.0566745]
[1745290757649,0.4535387,88222.0,88221.0,0.0566745]
[1745290757849,0.4536187,88222.0,88221.0,0.0566745]
[1745290759152,0.3402678,88222.0,88221.0,0.0566745]
[1745290759352,0.3401878,88222.0,88221.0,0.0566745]
[1745290759555,0.3402678,88222.0,88221.0,0.0947745]
[1745290759755,0.4536159,88222.0,88221.0,0.0947745]
[1745290760444,0.4154159,88222.0,88221.0,0.0947745]
[1745290760949,0.00025,88222.0,88221.0,0.0947745]
[1745290761356,0.00017,88222.0,88221.0,0.0947745]
[1745290761555,0.00025,88222.0,88221.0,0.0947745]
[1745290761859,0.00025,88222.0,88221.0,0.5061745]
[1745290762247,0.00025,88222.0,88221.0,0.7001745]
[1745290762954,0.00025,88222.0,88221.0,0.6981745]
[1745290763156,0.00025,88222.0,88221.0,0.7011745]
[1745290764057,0.00025,88222.0,88221.0,0.5091745]
[1745290764360,0.00025,88222.0,88221.0,0.5081745]
[1745290764549,0.00025,88222.0,88221.0,0.5091745]
[1745290765157,0.00025,88222.0,88221.0,0.7011745]
[1745290765552,0.00025,88222.0,88221.0,0.7911745]
[1745290765748,0.36099684,88240.0,88221.0,0.7911745]
[1745290765749,0.04140801,88232.0,88231.0,0.1133365]
[1745290765957,0.0413,88232.0,88231.0,0.4741365]
[1745290766157,0.005,88243.0,88242.0,0.1133224]
[1745290766355,0.0454,88243.0,88242.0,0.1133224]
[1745290766655,0.04548,88243.0,88242.0,0.1907224]
[1745290767157,0.00508,88243.0,88242.0,0.1907224]
[1745290767350,0.00017,88251.0,88250.0,0.1133121]
[1745290767554,0.00017,88251.0,88250.0,0.4741121]
[1745290767755,0.2621878,88251.0,88250.0,0.4741121]
[1745290767949,0.2621878,88251.0,88250.0,0.5515121]
[1745290768154,0.2621878,88251.0,88250.0,0.7435121]
[1745290768556,0.2621878,88251.0,88250.0,0.7039121]
[1745290768754,0.3019678,88251.0,88250.0,0.7039121]
[1745290769059,0.3019678,88251.0,88250.0,0.7049121]
[1745290770055,0.4152786,88251.0,88250.0,0.7049121]
[1745290770250,0.4152786,88251.0,88250.0,0.3618]
[1745290770462,0.4152786,88251.0,88248.0,0.4114]
[1745290770463,0.1133134,88249.0,88248.0,0.4114]
[1745290770667,0.1699815,88244.0,88243.0,0.1133199]
[1745290771261,0.0566614,88242.0,88235.0,0.0566657]
[1745290771457,0.1133301,88237.0,88236.0,0.1133288]
[1745290771762,0.1133314,88235.0,88221.0,0.08]
[1745290771959,0.1133314,88235.0,88234.0,0.1135027]
[1745290772163,0.5673492,88235.0,88234.0,0.1135027]
[1745290772364,0.6823492,88235.0,88234.0,0.1135027]
[1745290772950,0.6833492,88235.0,88234.0,0.00017]
[1745290773153,0.1700142,88229.0,88228.0,0.0566696]
[1745290773557,0.432032,88229.0,88228.0,0.0566696]
[1745290774266,0.508432,88229.0,88228.0,0.0566696]
[1745290774864,0.508432,88229.0,88228.0,0.0576696]
[1745290776058,0.508432,88229.0,88228.0,0.0586696]
[1745290776266,0.3384178,88229.0,88228.0,0.0586696]
[1745290776865,0.4517569,88229.0,88228.0,0.0586696]
[1745290777059,0.4517569,88229.0,88228.0,0.0576696]
[1745290777660,0.4517569,88229.0,88228.0,0.0566696]
[1745290777866,0.4517569,88229.0,88228.0,0.0576696]
[1745290778567,0.4517569,88229.0,88228.0,0.0566696]
[1745290779564,0.1133442,88225.0,88224.0,0.1133448]
[1745290779959,0.375362,88225.0,88224.0,0.1133448]
[1745290780662,0.375362,88225.0,88224.0,0.1494448]
[1745290782563,0.412962,88225.0,88224.0,0.1494448]